fUST/lending_fUST_20250613
["ID","MTS","AMOUNT","RATE_DAILY","PERIOD"]
[365646129,1749817849217,-1172.81,0.00022465,4]
[365646130,1749817849227,-460.0,0.00022465,4]
[365646131,1749817849237,-460.0,0.00022465,4]
[365646132,1749817849246,-460.0,0.00022465,4]
[365646133,1749817849256,-1270.49,0.00022465,4]
[365646134,1749817849266,-460.0,0.00022465,4]
[365646135,1749817849275,-1572.19,0.00022465,4]
[365646136,1749817849285,-460.0,0.00022465,4]
[365646137,1749817849295,-460.0,0.00022465,4]
[365646138,1749817849304,-2340.71,0.00022465,4]
[365646139,1749817849313,-360.0,0.00022465,4]
[365646140,1749817849323,-460.0,0.00022465,4]
[365646141,1749817849332,-460.0,0.00022465,4]
[365646142,1749817849342,-470.43767014,0.00022466,2]
[365646143,1749817849352,-1500.0,0.00022468,2]
[365646144,1749817849362,-1000.0,0.00022468,2]
[365646145,1749817849371,-500.0,0.00022468,2]
[365646146,1749817849381,-188.27137293,0.00022468,2]
[365646147,1749817849392,-756.81,0.00022475,7]
[365646148,1749817849401,-153.0,0.00022521,2]
[365646149,1749817849410,-47850.76996886,0.0002254,2]
[365646150,1749817849578,-1150.70997752,0.00021369,4]
[365646151,1749817850085,-410.61729735,0.00021095,4]
[365646152,1749817850098,-460.0,0.00021095,4]
[365646153,1749817850107,-460.0,0.00021095,4]
[365646154,1749817850117,-460.0,0.00021095,4]
[365646155,1749817850126,-460.0,0.00021095,4]
[365646156,1749817850137,-460.0,0.00021095,4]
[365646157,1749817850149,-289.38270265,0.00021368,4]
[365646158,1749817850161,-432.64729735,0.00021368,4]
[365646159,1749817850173,-722.03,0.00021368,4]
[365646160,1749817850183,-722.03,0.00021368,4]
[365646161,1749817850192,-722.03,0.00021368,4]
[365646162,1749817850202,-722.03,0.00021368,4]
[365646163,1749817850212,-722.03,0.00021368,4]
[365646164,1749817850221,-722.08210826,0.00021368,4]
[365646165,1749817850231,-965.88002248,0.00021369,4]
[365646166,1749817850240,-460.0,0.00021369,4]
[365646167,1749817850250,-460.0,0.00021369,4]
[365646168,1749817850260,-400.0,0.00021369,4]
[365646169,1749817850269,-460.0,0.00021369,4]
[365646170,1749817850279,-460.0,0.00021369,4]
[365646171,1749817850289,-2116.59,0.00021643,4]
[365646172,1749817850298,-460.0,0.00021643,4]
[365646173,1749817850307,-460.0,0.00021643,4]
[365646174,1749817850317,-460.0,0.00021643,4]
[365646175,1749817850327,-460.0,0.00021643,4]
[365646176,1749817850336,-2116.59,0.00021917,4]
[365646177,1749817850345,-460.0,0.00021917,4]
[365646178,1749817850355,-460.0,0.00021917,4]
[365646179,1749817850364,-460.0,0.00021917,4]
[365646180,1749817850374,-400.0,0.00021917,4]
[365646181,1749817850383,-2116.59,0.00022191,4]
[365646182,1749817850393,-460.0,0.00022191,4]
[365646183,1749817850403,-460.0,0.00022191,4]
[365646184,1749817850413,-460.0,0.00022191,4]
[365646185,1749817850423,-2116.59,0.00022465,4]
[365646186,1749817850433,-460.0,0.00022465,4]
[365646187,1749817850443,-460.0,0.00022465,4]
[365646188,1749817850452,-460.0,0.00022465,4]
[365646189,1749817850462,-153396.84746557,0.0002254,2]
[365646190,1749817850471,-484.08527767,0.00022559,2]
[365646191,1749817850480,-500.0,0.00022559,2]
[365646192,1749817850490,-629.63536797,0.00022559,2]
[365646193,1749817850499,-1000.0,0.00022559,2]
[365646194,1749817850509,-500.0,0.00022559,2]
[365646195,1749817850519,-1000.0,0.00022559,2]
[365646196,1749817850528,-444.57198574,0.00022559,2]
[365646197,1749817850537,-1000.0,0.00022559,2]
[365646198,1749817850547,-1000.0,0.00022559,2]
[365646199,1749817850556,-1013.99793096,0.00022559,2]
[365646200,1749817850565,-1200.0,0.00022559,2]
[365646201,1749817850575,-1000.0,0.00022559,2]
[365646202,1749817850584,-1013.82596414,0.00022559,2]
[365646203,1749817850593,-502.36320382,0.00022573,2]
[365646204,1749817850603,-260.27069177,0.00022573,2]
[365646205,1749817850612,-500.50279915,0.00022573,2]
[365646206,1749817850621,-546.17308086,0.00022573,2]
[365646207,1749817850630,-501.75117686,0.00022573,2]
[365646208,1749817850640,-258.67307002,0.00022573,2]
[365646209,1749817850650,-501.04561365,0.00022573,2]
[365646210,1749817850659,-548.790575,0.00022573,2]
[365646211,1749817850669,-336.69550584,0.00022573,2]
[365646212,1749817850678,-500.0,0.00022573,2]
[365646213,1749817850688,-502.88540669,0.00022573,2]
[365646214,1749817850698,-614.84590167,0.00022573,2]
[365646215,1749817850707,-516.03614857,0.00022573,2]
[365646216,1749817850717,-171.77129244,0.00022573,2]
[365646217,1749817850726,-500.0,0.00022573,2]
[365646218,1749817850736,-756.81,0.00022575,7]
[365646219,1749817850745,-969.196,0.00022585,2]
[365646220,1749817850755,-1057.91069595,0.0002259,7]
[365646221,1749817850765,-1002.84766964,0.00022596,2]
[365646222,1749817850775,-756.81,0.00022675,3]
[365646223,1749817850784,-151.0,0.00022739,7]
[365646224,1749817850794,-151.0,0.00022739,7]
[365646225,1749817850803,-460.0,0.00022739,4]
[365646226,1749817850812,-460.0,0.00022739,4]
[365646227,1749817850821,-300.0,0.00022739,4]
[365646228,1749817850831,-460.0,0.00022739,4]
[365646229,1749817850840,-460.0,0.00022739,2]
[365646230,1749817850850,-460.0,0.00022739,4]
[365646231,1749817850859,-596.93,0.00022739,4]
[365646232,1749817850870,-366.27,0.00022739,4]
[365646233,1749817850879,-220.0,0.00022739,4]
[365646234,1749817850889,-460.0,0.00022739,4]
[365646235,1749817850900,-1441.42,0.00022739,4]
[365646236,1749817850910,-460.0,0.00022739,4]
[365646237,1749817850920,-515.97,0.00022739,4]
[365646238,1749817850930,-1168.13,0.00022739,4]
[365646239,1749817850940,-460.0,0.00022739,4]
[365646240,1749817850950,-553.05673029,0.00022739,4]
[365646241,1749817850959,-1510.16,0.00022739,4]
[365646242,1749817850969,-595.13,0.00022739,4]
[365646243,1749817850979,-460.0,0.00022739,4]
[365646244,1749817850989,-460.0,0.00022739,4]
[365646245,1749817850999,-574.99,0.00022739,4]
[365646246,1749817851010,-656.53,0.00022739,4]
[365646247,1749817851020,-460.0,0.00022739,4]
[365646248,1749817851030,-3611.6,0.00022739,4]
[365646249,1749817851039,-340.0,0.00022739,4]
[365646250,1749817851049,-200.0,0.00022739,4]
[365646251,1749817851058,-922.66,0.00022739,4]
[365646252,1749817851068,-974.47,0.00022739,4]
[365646253,1749817851078,-831.19,0.00022739,4]
[365646254,1749817851088,-1172.81,0.00022739,4]
[365646256,1749817851102,-460.0,0.00022739,4]
[365646257,1749817851111,-460.0,0.00022739,4]
[365646258,1749817851121,-180.0,0.00022739,4]
[365646259,1749817851130,-1270.49,0.00022739,4]
[365646260,1749817851141,-460.0,0.00022739,4]
[365646261,1749817851153,-1572.19,0.00022739,4]
[365646262,1749817851162,-460.0,0.00022739,4]
[365646263,1749817851174,-460.0,0.00022739,4]
[365646264,1749817851184,-2340.71,0.00022739,4]
[365646265,1749817851193,-195.12988453,0.00022739,4]
[365646266,1749817851203,-460.0,0.00022739,4]
[365646267,1749817851212,-2116.59,0.00022739,4]
[365646268,1749817851222,-460.0,0.00022739,4]
[365646269,1749817851231,-300.0,0.00022739,4]
[365646270,1749817851241,-501.02704274,0.0002274,2]
[365646271,1749817851251,-1001.89008847,0.0002274,2]
[365646272,1749817851261,-500.0,0.00022768,2]
[365646273,1749817851270,-756.81,0.00022775,6]
[365646274,1749817851280,-250.0,0.00022792,2]
[365646275,1749817851289,-1057.91069595,0.00022797,7]
[365646276,1749817851300,-4141.31,0.00022864,2]
[365646277,1749817851311,-756.81,0.00022875,3]
[365646278,1749817851320,-438.89068152,0.00022877,2]
[365646279,1749817851330,-160.0,0.00022886,4]
[365646280,1749817851339,-840.31431599,0.000229,2]
[365646281,1749817851348,-7264.14274133,0.00022904,2]
[365646282,1749817851358,-500.9670821,0.00022905,2]
[365646283,1749817851367,-258.67307002,0.00022927,2]
[365646284,1749817851376,-500.0,0.00022927,2]
[365646285,1749817851386,-501.95591441,0.00022927,2]
[365646286,1749817851397,-258.67572705,0.00022927,2]
[365646287,1749817851406,-263.08203782,0.00022927,2]
[365646288,1749817851415,-533.42274231,0.00022973,2]
[365646289,1749817851425,-500.0,0.00022973,2]
[365646290,1749817851508,-756.81,0.00022975,7]
[365646291,1749817851518,-365.2062734,0.00022986,2]
[365646292,1749817851528,-365.2062734,0.00022986,2]
[365646293,1749817851538,-365.2062734,0.00022986,2]
[365646294,1749817851547,-365.2062734,0.00022986,2]
[365646295,1749817851556,-365.2062734,0.00022986,2]
[365646296,1749817851566,-365.2062734,0.00022986,2]
[365646297,1749817851575,-365.2062734,0.00022986,2]
[365646298,1749817851585,-365.2062734,0.00022986,2]
[365646299,1749817851595,-347.8408316,0.00022986,2]
[365646300,1749817851605,-151.0,0.00023,7]
[365646301,1749817851615,-408485.07971335,0.00023,2]
[365646302,1749817851625,-151.0,0.00023,5]
[365646303,1749817851635,-132805.27714238,0.00023,2]
[365646304,1749817851646,-248.71259222,0.00023,2]
[365646305,1749817851656,-1127.42139629,0.00023,2]
[365646306,1749817851665,-44175.12758854,0.00023,2]
[365646307,1749817851675,-10043.38789823,0.00023,2]
[365646308,1749817851684,-356948.7550305,0.00023,20]
[365646309,1749817851693,-151.0,0.00023,7]
[365646310,1749817851703,-151.0,0.00023,7]
[365646311,1749817851712,-153.829744,0.00023,7]
[365646312,1749817851722,-1057.91069595,0.00023003,8]
[365646313,1749817851731,-310.0,0.00023013,4]
[365646314,1749817851740,-460.0,0.00023013,4]
[365646315,1749817851749,-320.0,0.00023013,4]
[365646316,1749817851759,-460.0,0.00023013,2]
[365646317,1749817851769,-460.0,0.00023013,4]
[365646318,1749817851779,-460.0,0.00023013,4]
[365646319,1749817851788,-1441.42,0.00023013,4]
[365646320,1749817851798,-380.0,0.00023013,4]
[365646321,1749817851808,-515.97,0.00023013,4]
[365646322,1749817851820,-1168.13,0.00023013,4]
[365646323,1749817851831,-460.0,0.00023013,4]
[365646324,1749817851841,-1510.16,0.00023013,4]
[365646325,1749817851851,-595.13,0.00023013,4]
[365646326,1749817851861,-460.0,0.00023013,4]
[365646327,1749817851870,-460.0,0.00023013,4]
[365646328,1749817851880,-574.99,0.00023013,4]
[365646329,1749817851890,-656.53,0.00023013,4]
[365646330,1749817851901,-200.0,0.00023013,4]
[365646331,1749817851910,-3611.6,0.00023013,4]
[365646332,1749817851919,-922.66,0.00023013,4]
[365646333,1749817851929,-974.47,0.00023013,4]
[365646334,1749817851939,-831.19,0.00023013,4]
[365646335,1749817851949,-1172.81,0.00023013,4]
[365646336,1749817851958,-460.0,0.00023013,4]
[365646337,1749817851968,-600.0,0.00023013,4]
[365646338,1749817851977,-1270.49,0.00023013,4]
[365646339,1749817851987,-460.0,0.00023013,4]
[365646340,1749817851996,-1572.19,0.00023013,4]
[365646341,1749817852006,-460.0,0.00023013,4]
[365646342,1749817852015,-460.0,0.00023013,4]
[365646343,1749817852025,-2340.71,0.00023013,4]
[365646344,1749817852035,-460.0,0.00023013,4]
[365646345,1749817852044,-2116.59,0.00023013,4]
[365646346,1749817852054,-460.0,0.00023013,4]
[365646347,1749817852064,-365.2062734,0.00023014,2]
[365646348,1749817852074,-500.0,0.00023017,2]
[365646349,1749817852083,-160.0,0.00023033,2]
[365646350,1749817852095,-835.28007164,0.00023035,2]
[365646351,1749817852105,-229.78555783,0.00023035,2]
[365646352,1749817852115,-160.0,0.00023035,2]
[365646353,1749817852124,-160.0,0.00023035,2]
[365646354,1749817852135,-844.94977992,0.00023035,2]
[365646355,1749817852145,-424.32678023,0.00023035,2]
[365646356,1749817852154,-194.05928818,0.00023074,2]
[365646357,1749817852163,-756.81,0.00023075,6]
[365646358,1749817852174,-438.89068152,0.00023086,2]
[365646359,1749817852183,-500.0,0.00023097,2]
[365646360,1749817852192,-1500.0,0.00023107,2]
[365646361,1749817852201,-1500.0,0.00023107,2]
[365646362,1749817852211,-1500.0,0.00023107,2]
[365646363,1749817852220,-1800.0,0.00023107,2]
[365646364,1749817852232,-1500.0,0.00023107,2]
[365646365,1749817852241,-500.53643659,0.00023121,2]
[365646366,1749817852254,-1000.0,0.00023121,2]
[365646367,1749817852264,-7264.14274124,0.00023126,2]
[365646368,1749817852274,-500.0,0.00023138,2]
[365646369,1749817852283,-500.0,0.00023144,2]
[365646370,1749817852293,-223.0315306,0.00023148,2]
[365646371,1749817852302,-2160.0,0.00023165,2]
[365646372,1749817852311,-653.0,0.00023165,2]
[365646373,1749817852320,-405.0,0.00023165,2]
[365646374,1749817852331,-1002.84766964,0.00023173,2]
[365646375,1749817852340,-756.81,0.00023175,7]
[365646376,1749817852350,-155.0,0.00023203,2]
[365646377,1749817852359,-214.84348351,0.00023205,2]
[365646378,1749817852368,-500.0,0.00023209,2]
[365646379,1749817852378,-1057.91069595,0.0002321,8]
[365646380,1749817852388,-500.0,0.00023234,2]
[365646381,1749817852398,-500.0,0.00023236,2]
[365646382,1749817852408,-153.0,0.0002326,2]
[365646383,1749817852418,-153.0,0.0002326,2]
[365646384,1749817852427,-153.0,0.0002326,2]
[365646385,1749817852438,-153.0,0.0002326,2]
[365646386,1749817852447,-153.0,0.0002326,2]
[365646387,1749817852457,-153.0,0.00023261,2]
[365646388,1749817852467,-153.0,0.00023261,2]
[365646389,1749817852476,-500.0,0.00023268,2]
[365646390,1749817852486,-756.81,0.00023275,7]
[365646391,1749817852495,-460.0,0.00023287,4]
[365646392,1749817852505,-460.0,0.00023287,2]
[365646393,1749817852515,-460.0,0.00023287,4]
[365646394,1749817852524,-460.0,0.00023287,4]
[365646395,1749817852534,-1441.42,0.00023287,4]
[365646396,1749817852543,-515.97,0.00023287,4]
[365646397,1749817852554,-1168.13,0.00023287,4]
[365646398,1749817852563,-346.8,0.00023287,4]
[365646399,1749817852573,-1510.16,0.00023287,4]
[365646400,1749817852583,-595.13,0.00023287,4]
[365646401,1749817852592,-460.0,0.00023287,4]
[365646402,1749817852601,-460.0,0.00023287,4]
[365646403,1749817852612,-574.99,0.00023287,4]
[365646404,1749817852622,-656.53,0.00023287,4]
[365646405,1749817852631,-3611.6,0.00023287,4]
[365646406,1749817852640,-922.66,0.00023287,4]
[365646407,1749817852650,-974.47,0.00023287,4]
[365646408,1749817852660,-831.19,0.00023287,4]
[365646409,1749817852670,-1172.81,0.00023287,4]
[365646410,1749817852679,-460.0,0.00023287,4]
[365646411,1749817852688,-1270.49,0.00023287,4]
[365646412,1749817852698,-460.0,0.00023287,4]
[365646413,1749817852709,-1572.19,0.00023287,4]
[365646414,1749817852718,-200.0,0.00023287,4]
[365646415,1749817852728,-460.0,0.00023287,4]
[365646416,1749817852737,-2340.71,0.00023287,4]
[365646417,1749817852747,-460.0,0.00023287,4]
[365646418,1749817852757,-2116.59,0.00023287,4]
[365646419,1749817852767,-460.0,0.00023287,4]
[365646420,1749817852776,-500.0,0.00023288,2]
[365646421,1749817852786,-500.0,0.00023297,2]
[365646422,1749817852795,-151.0,0.000233,10]
[365646423,1749817852805,-500.0,0.00023312,2]
[365646424,1749817852815,-151.0,0.00023314,7]
[365646425,1749817852824,-1933.710628,0.00023323,3]
[365646426,1749817852833,-500.0,0.00023334,2]
[365646427,1749817852843,-153.0,0.00023342,2]
[365646428,1749817852852,-573.3540349,0.00023342,2]
[365646429,1749817852862,-153.0,0.00023342,2]
[365646430,1749817852938,-153.0,0.00023342,2]
[365646431,1749817852948,-7264.14274124,0.00023349,2]
[365646432,1749817852957,-500.0,0.00023356,2]
[365646433,1749817852967,-438.89068152,0.0002336,2]
[365646434,1749817852977,-500.0,0.00023367,2]
[365646435,1749817852986,-756.81,0.00023375,6]
[365646436,1749817852996,-823.0,0.00023381,2]
[365646437,1749817853005,-500.0,0.00023385,2]
[365646438,1749817853015,-835.28007164,0.000234,3]
[365646439,1749817853024,-1057.91069595,0.00023417,9]
[365646440,1749817853034,-500.0,0.00023437,2]
[365646441,1749817853044,-500.0,0.00023465,2]
[365646442,1749817853053,-500.0,0.00023473,2]
[365646443,1749817853063,-756.81,0.00023475,7]
[365646444,1749817853073,-500.0,0.00023479,2]
[365646445,1749817853082,-500.0,0.00023482,2]
[365646446,1749817853093,-514.81,0.000235,2]
[365646447,1749817853103,-5426.0,0.000235,2]
[365646448,1749817853112,-5426.0,0.000235,2]
[365646449,1749817853122,-5426.0,0.000235,2]
[365646450,1749817853132,-5426.0,0.000235,2]
[365646451,1749817853142,-5426.0,0.000235,2]
[365646452,1749817853151,-5426.0,0.000235,2]
[365646453,1749817853161,-151.0,0.000235,6]
[365646454,1749817853174,-12531.02669373,0.000235,7]
[365646455,1749817853184,-844.94977992,0.000235,7]
[365646456,1749817853194,-500.0,0.00023504,2]
[365646457,1749817853203,-500.0,0.00023526,2]
[365646458,1749817853211,-460.0,0.00023561,4]
[365646459,1749817853220,-460.0,0.00023561,2]
[365646460,1749817853230,-460.0,0.00023561,4]
[365646461,1749817853240,-416.9174046,0.00023561,4]
[365646462,1749817853250,-1441.42,0.00023561,4]
[365646463,1749817853259,-515.97,0.00023561,4]
[365646464,1749817853268,-1168.13,0.00023561,4]
[365646465,1749817853278,-1510.16,0.00023561,4]
[365646466,1749817853287,-595.13,0.00023561,4]
[365646467,1749817853297,-460.0,0.00023561,4]
[365646468,1749817853306,-460.0,0.00023561,4]
[365646469,1749817853316,-574.99,0.00023561,4]
[365646470,1749817853326,-656.53,0.00023561,4]
[365646471,1749817853336,-3611.6,0.00023561,4]
[365646472,1749817853347,-922.66,0.00023561,4]
[365646473,1749817853356,-974.47,0.00023561,4]
[365646474,1749817853366,-831.19,0.00023561,4]
[365646475,1749817853375,-1172.81,0.00023561,4]
[365646476,1749817853385,-200.0,0.00023561,4]
[365646477,1749817853394,-1270.49,0.00023561,4]
[365646478,1749817853404,-460.0,0.00023561,4]
[365646479,1749817853413,-1572.19,0.00023561,4]
[365646480,1749817853422,-460.0,0.00023561,4]
[365646481,1749817853432,-2340.71,0.00023561,4]
[365646482,1749817853441,-460.0,0.00023561,4]
[365646483,1749817853450,-2116.59,0.00023561,4]
[365646484,1749817853460,-460.0,0.00023561,4]
[365646485,1749817853470,-7620.39078176,0.00023562,2]
[365646486,1749817853479,-800.0,0.00023562,2]
[365646487,1749817853488,-7264.14274124,0.00023571,2]
[365646488,1749817853497,-756.81,0.00023575,6]
[365646489,1749817853506,-500.0,0.00023582,2]
[365646490,1749817853516,-478.77986865,0.000236,2]
[365646491,1749817853525,-500.0,0.00023606,2]
[365646492,1749817853534,-500.0,0.00023616,2]
[365646493,1749817853544,-500.0,0.00023617,2]
[365646494,1749817853554,-500.0,0.00023618,2]
[365646495,1749817853563,-1057.91069595,0.00023624,9]
[365646496,1749817853572,-824.65991318,0.00023645,2]
[365646497,1749817853583,-2000.0,0.00023655,2]
[365646498,1749817853593,-2000.0,0.00023655,2]
[365646499,1749817853602,-2000.0,0.00023655,2]
[365646500,1749817853612,-2400.0,0.00023655,2]
[365646501,1749817853622,-2000.0,0.00023655,2]
[365646502,1749817853632,-1500.0,0.00023668,2]
[365646503,1749817853642,-800.0,0.00023673,2]
[365646504,1749817853652,-478.77986865,0.00023674,2]
[365646505,1749817853662,-756.81,0.00023675,5]
[365646506,1749817853671,-478.77986865,0.00023676,2]
[365646507,1749817853680,-293.85068442,0.00023699,2]
[365646508,1749817853690,-478.77986865,0.000237,2]
[365646509,1749817853701,-174.687714,0.000237,7]
[365646510,1749817853711,-174.687714,0.000237,7]
[365646511,1749817853721,-800.0,0.00023729,2]
[365646512,1749817853731,-1002.84766964,0.0002375,2]
[365646513,1749817853740,-182.202556,0.0002377,7]
[365646514,1749817853750,-500.0,0.00023773,2]
[365646515,1749817853760,-502.18762208,0.00023773,2]
[365646516,1749817853769,-500.0,0.00023773,2]
[365646517,1749817853779,-500.0,0.00023773,2]
[365646518,1749817853788,-264.78445052,0.00023773,2]
[365646519,1749817853798,-500.0,0.00023773,2]
[365646520,1749817853807,-500.0,0.00023773,2]
[365646521,1749817853817,-756.81,0.00023775,4]
[365646522,1749817853826,-33223.45301397,0.0002378,2]
[365646523,1749817853835,-19941.31818419,0.0002378,2]
[365646524,1749817853845,-12245.17395779,0.0002378,7]
[365646525,1749817853855,-151.0,0.0002378,7]
[365646526,1749817853864,-174.687714,0.0002378,7]
[365646527,1749817853874,-174.687714,0.0002378,7]
[365646528,1749817853883,-95409.85475804,0.0002378,5]
[365646529,1749817853915,-430.0,0.0002378,5]
[365646530,1749817853988,-372.9841686,0.00020481,2]
[365646531,1749817853997,-168.6658314,0.00021633,10]
[365646532,1749817854013,-284.78016519,0.00021633,10]
[365646536,1749817881060,2341.64,0.00025005,60]
[365646546,1749817973392,851.4,0.00025005,60]
[365646554,1749817998919,30134.8508347,0.00025005,60]
[365646560,1749818056930,161.17327,0.00019924,61]
[365646561,1749818057151,161.17327,0.00019924,90]
[365646562,1749818057353,161.17327,0.00019924,120]
[365646570,1749818139397,7263.84825405,0.00025124,60]
[365646642,1749818385804,500.0,0.0002,120]
[365646643,1749818399674,500.0,0.0002,120]
[365646647,1749818523285,2000.0,0.00019422,120]
[365646654,1749818575924,160.954004,0.00013699,2]
[365646731,1749819031877,-160.50970012,0.00018439,2]
[365646733,1749819031887,-499.490631,0.00019122,2]
[365646735,1749819031896,-951.4371821,0.00019167,2]
[365646737,1749819031905,-4866.34757839,0.000192,2]
[365646739,1749819031915,-776.3742453,0.00019237,2]
[365646741,1749819031925,-247.39797395,0.00019311,2]
[365646743,1749819031935,-261.61831647,0.00019365,2]
[365646746,1749819031944,-185.65513,0.00019386,2]
[365646747,1749819031954,-823.0,0.00019398,2]
[365646748,1749819031964,-238.94715079,0.00019399,2]
[365646749,1749819031974,-419.9166924,0.00019426,2]
[365646750,1749819031983,-255.0,0.0001961,2]
[365646751,1749819031993,-322.26193923,0.00019615,2]
[365646752,1749819032003,-300.0,0.00019669,2]
[365646753,1749819032012,-300.0,0.0001967,2]
[365646754,1749819032023,-1688.0,0.00019671,2]
[365646755,1749819032032,-207.4,0.00019671,2]
[365646756,1749819032042,-933.426405,0.00019726,2]
[365646757,1749819032051,-161.17327,0.00019924,2]
[365646758,1749819032062,-161.17327,0.00019924,31]
[365646759,1749819032071,-801.12288704,0.00020217,2]
[365646760,1749819032081,-1000.0,0.00020421,2]
[365646761,1749819032091,-918.79251272,0.000205,3]
[365646762,1749819032100,-918.79251259,0.000205,3]
[365646763,1749819032110,-918.79251259,0.000205,3]
[365646764,1749819032122,-918.79251259,0.00020521,3]
[365646765,1749819032131,-918.79251259,0.00020728,3]
[365646766,1749819032142,-1000.0,0.00020863,2]
[365646767,1749819032152,-903.12028295,0.00020902,2]
[365646768,1749819032162,-918.79251259,0.00020934,4]
[365646769,1749819032172,-500.0,0.00020964,2]
[365646770,1749819032182,-290.99212112,0.00020994,2]
[365646771,1749819032192,-159.487,0.00020995,2]
[365646772,1749819032202,-177.92407056,0.00020995,2]
[365646773,1749819032212,-500.0,0.00020999,2]
[365646774,1749819032222,-5000.0,0.00020999,2]
[365646775,1749819032232,-500.0,0.00020999,2]
[365646776,1749819032242,-500.0,0.00020999,2]
[365646777,1749819032252,-500.0,0.00020999,2]
[365646778,1749819032262,-500.0,0.00020999,2]
[365646779,1749819032271,-500.0,0.00020999,2]
[365646780,1749819032281,-500.0,0.00020999,2]
[365646781,1749819032291,-500.0,0.00020999,2]
[365646782,1749819032300,-500.0,0.00020999,2]
[365646783,1749819032310,-500.0,0.00020999,2]
[365646784,1749819032319,-500.0,0.00020999,2]
[365646785,1749819032329,-500.0,0.00020999,2]
[365646786,1749819032339,-500.0,0.00020999,2]
[365646787,1749819032350,-500.0,0.00020999,2]
[365646788,1749819032360,-500.0,0.00020999,2]
[365646789,1749819032370,-500.0,0.00020999,2]
[365646790,1749819032380,-500.0,0.00020999,2]
[365646791,1749819032390,-500.0,0.00020999,2]
[365646792,1749819032399,-500.0,0.00020999,2]
[365646793,1749819032408,-500.0,0.00020999,2]
[365646794,1749819032418,-500.0,0.00020999,2]
[365646795,1749819032428,-500.0,0.00020999,2]
[365646796,1749819032437,-500.0,0.00020999,2]
[365646797,1749819032447,-500.0,0.00020999,2]
[365646798,1749819032456,-500.0,0.00020999,2]
[365646799,1749819032466,-500.0,0.00020999,2]
[365646800,1749819032479,-500.0,0.00020999,2]
[365646801,1749819032489,-500.0,0.00020999,2]
[365646802,1749819032498,-500.0,0.00020999,2]
[365646803,1749819032508,-500.0,0.00020999,2]
[365646804,1749819032519,-2837.95,0.00021,10]
[365646805,1749819032529,-24900.0,0.00021017,2]
[365646806,1749819032666,-215.0738,0.0002104,2]
[365646807,1749819032676,-154.87143591,0.00021073,2]
[365646808,1749819032686,-500.0,0.00021073,2]
[365646809,1749819032695,-500.0,0.00021073,2]
[365646810,1749819032705,-500.0,0.00021073,2]
[365646811,1749819032714,-500.0,0.00021073,2]
[365646812,1749819032724,-566.49146546,0.00021073,2]
[365646813,1749819032734,-500.0,0.00021073,2]
[365646814,1749819032744,-545.25559838,0.00021073,2]
[365646815,1749819032754,-500.0,0.00021073,2]
[365646816,1749819032763,-500.0,0.00021073,2]
[365646817,1749819032773,-500.0,0.00021073,2]
[365646818,1749819032783,-1000.0,0.00021081,2]
[365646819,1749819032792,-502.28,0.00021084,3]
[365646820,1749819032802,-251.14,0.00021084,3]
[365646821,1749819032811,-753.44,0.00021084,3]
[365646822,1749819032821,-500.0,0.00021089,2]
[365646823,1749819032831,-177.52,0.00021089,2]
[365646824,1749819032841,-1000.0,0.00021089,2]